[Event "Titled Tuesday Blitz August 22 Late 2023"]
[White "reevecanada"]
[Black "Ai, Evan"]
[BlackFideId "2094770"]
[WhiteElo "2502"]
[BlackElo "2254"]
[Result "1-0"]
[Round "9"]
[TimeControl "180+1"]
[Date "2023.08.22"]
[WhiteClock "0:01:38"]
[BlackClock "0:00:02"]
[Board "120"]

1. e4 {[%clk 0:03:00]}  c5 {[%clk 0:02:59]} 2. Nf3 {[%clk 0:02:59]}  d6 {[%clk 0:02:59]} 3. Bb5+ {[%clk 0:02:58]}  Nd7 {[%clk 0:02:54]} 4. d4 {[%clk 0:02:58]}  cxd4 {[%clk 0:02:52]} 5. Nxd4 {[%clk 0:02:57]}  Nf6 {[%clk 0:02:52]} 6. O-O {[%clk 0:02:56]}  a6 {[%clk 0:02:51]} 7. Bd3 {[%clk 0:02:55]}  g6 {[%clk 0:02:50]} 8. Re1 {[%clk 0:02:54]}  Bg7 {[%clk 0:02:48]} 9. c4 {[%clk 0:02:53]}  Qc7 {[%clk 0:02:46]} 10. Nc3 {[%clk 0:02:52]}  b6 {[%clk 0:02:40]} 11. Bf1 {[%clk 0:02:51]}  Bb7 {[%clk 0:02:40]} 12. b3 {[%clk 0:02:50]}  O-O {[%clk 0:02:39]} 13. Bb2 {[%clk 0:02:49]}  e6 {[%clk 0:02:33]} 14. Rc1 {[%clk 0:02:49]}  Rad8 {[%clk 0:02:31]} 15. f3 {[%clk 0:02:48]}  Qb8 {[%clk 0:02:30]} 16. Qe2 {[%clk 0:02:46]}  d5 {[%clk 0:02:27]} 17. cxd5 {[%clk 0:02:40]}  exd5 {[%clk 0:02:28]} 18. exd5 {[%clk 0:02:39]}  Nxd5 {[%clk 0:02:24]} 19. Nxd5 {[%clk 0:02:38]}  Bxd5 {[%clk 0:02:25]} 20. Qxa6 {[%clk 0:02:35]}  Nc5 {[%clk 0:02:24]} 21. Qe2 {[%clk 0:02:33]}  Rfe8 {[%clk 0:01:51]} 22. Qf2 {[%clk 0:02:32]}  Rxe1 {[%clk 0:01:50]} 23. Rxe1 {[%clk 0:02:30]}  Bb7 {[%clk 0:01:49]} 24. Ba1 {[%clk 0:02:23]}  Qf4 {[%clk 0:01:46]} 25. Rd1 {[%clk 0:02:15]}  Bh6 {[%clk 0:01:15]} 26. b4 {[%clk 0:02:03]}  Nd7 {[%clk 0:01:03]} 27. Ne2 {[%clk 0:02:03]}  Qe3 {[%clk 0:01:02]} 28. Bf6 {[%clk 0:02:01]}  Nxf6 {[%clk 0:00:36]} 29. Rxd8+ {[%clk 0:02:00]}  Kg7 {[%clk 0:00:35]} 30. Qxe3 {[%clk 0:01:52]}  Bxe3+ {[%clk 0:00:36]} 31. Kh1 {[%clk 0:01:53]}  Nd5 {[%clk 0:00:18]} 32. a3 {[%clk 0:01:52]}  Bg5 {[%clk 0:00:15]} 33. Rd7 {[%clk 0:01:46]}  Bc6 {[%clk 0:00:15]} 34. Rd6 {[%clk 0:01:45]}  Bb7 {[%clk 0:00:15]} 35. Nd4 {[%clk 0:01:44]}  Ne3 {[%clk 0:00:07]} 36. Rd7 {[%clk 0:01:42]}  Bc8 {[%clk 0:00:07]} 37. Rc7 {[%clk 0:01:39]}  Nxf1 {[%clk 0:00:04]} 38. Rxc8 {[%clk 0:01:39]}  Bc1 {[%clk 0:00:02]} 39. Rxc1 {[%clk 0:01:38]} 1-0


[Site "https://www.chess.com"]

[Event "Titled Tuesday Blitz August 22 Late 2023"]
[White "Bullen, Alex"]
[Black "Fernandez Bustamante, Leancy B."]
[WhiteFideId "1801627"]
[BlackFideId "3523870"]
[WhiteElo "2327"]
[BlackElo "2248"]
[Result "0-1"]
[Round "9"]
[TimeControl "180+1"]
[Date "2023.08.22"]
[WhiteClock "0:00:00"]
[BlackClock "0:01:04"]
[Board "122"]

1. d4 {[%clk 0:03:00]}  c5 {[%clk 0:03:00]} 2. d5 {[%clk 0:03:00]}  d6 {[%clk 0:03:00]} 3. Nc3 {[%clk 0:03:00]}  e5 {[%clk 0:03:01]} 4. e4 {[%clk 0:02:59]}  Nf6 {[%clk 0:03:01]} 5. a4 {[%clk 0:02:58]}  g6 {[%clk 0:03:01]} 6. Nf3 {[%clk 0:02:57]}  Bg7 {[%clk 0:02:59]} 7. h3 {[%clk 0:02:57]}  O-O {[%clk 0:02:59]} 8. Nd2 {[%clk 0:02:57]}  Ne8 {[%clk 0:02:51]} 9. Bd3 {[%clk 0:02:53]}  f5 {[%clk 0:02:50]} 10. Nc4 {[%clk 0:02:44]}  f4 {[%clk 0:02:42]} 11. h4 {[%clk 0:02:24]}  Nf6 {[%clk 0:02:34]} 12. h5 {[%clk 0:02:17]}  Bg4 {[%clk 0:02:30]} 13. Be2 {[%clk 0:02:12]}  Bxe2 {[%clk 0:02:28]} 14. Qxe2 {[%clk 0:02:11]}  Nxh5 {[%clk 0:02:27]} 15. Rxh5 {[%clk 0:02:09]}  gxh5 {[%clk 0:02:28]} 16. Qxh5 {[%clk 0:02:10]}  Rf6 {[%clk 0:02:21]} 17. Qg5 {[%clk 0:01:53]}  Qf8 {[%clk 0:02:15]} 18. Qh4 {[%clk 0:01:26]}  Na6 {[%clk 0:02:11]} 19. Bd2 {[%clk 0:01:20]}  Rh6 {[%clk 0:02:08]} 20. Qg5 {[%clk 0:00:53]}  Rh1+ {[%clk 0:02:06]} 21. Ke2 {[%clk 0:00:53]}  Rxa1 {[%clk 0:02:04]} 22. Nb5 {[%clk 0:00:50]}  Rd8 {[%clk 0:01:49]} 23. Bc3 {[%clk 0:00:41]}  Rxa4 {[%clk 0:01:41]} 24. b3 {[%clk 0:00:10]}  Ra2 {[%clk 0:01:37]} 25. Kd2 {[%clk 0:00:08]}  Nb4 {[%clk 0:01:35]} 26. Nxe5 {[%clk 0:00:06]}  Rxc2+ {[%clk 0:01:25]} 27. Kd1 {[%clk 0:00:06]}  Rxc3 {[%clk 0:01:19]} 28. Nc7 {[%clk 0:00:02]}  Qf6 {[%clk 0:01:07]} 29. Qh5 {[%clk 0:00:00]}  Qxe5 {[%clk 0:01:04]} 0-1


[Site "https://www.chess.com"]

[Event "Titled Tuesday Blitz August 22 Late 2023"]
[White "Zampronha, Wladimir Camilo"]
[Black "campochess"]
[WhiteFideId "2103087"]
[WhiteElo "2290"]
[BlackElo "2196"]
[Result "1-0"]
[Round "9"]
[TimeControl "180+1"]
[Date "2023.08.22"]
[WhiteClock "0:01:03"]
[BlackClock "0:01:17"]
[Board "124"]

1. e4 {[%clk 0:03:00]}  c5 {[%clk 0:02:59]} 2. Nf3 {[%clk 0:03:01]}  Nc6 {[%clk 0:02:59]} 3. d4 {[%clk 0:03:01]}  cxd4 {[%clk 0:02:59]} 4. Nxd4 {[%clk 0:03:02]}  e5 {[%clk 0:02:58]} 5. Nb5 {[%clk 0:03:01]}  a6 {[%clk 0:02:58]} 6. Nd6+ {[%clk 0:03:00]}  Bxd6 {[%clk 0:02:58]} 7. Qxd6 {[%clk 0:03:00]}  Qe7 {[%clk 0:02:59]} 8. Qxe7+ {[%clk 0:02:56]}  Ngxe7 {[%clk 0:02:58]} 9. Nc3 {[%clk 0:02:56]}  d5 {[%clk 0:02:57]} 10. Bd3 {[%clk 0:02:49]}  dxe4 {[%clk 0:02:54]} 11. Nxe4 {[%clk 0:02:49]}  O-O {[%clk 0:02:53]} 12. O-O {[%clk 0:02:34]}  Bf5 {[%clk 0:02:51]} 13. Re1 {[%clk 0:02:25]}  f6 {[%clk 0:02:47]} 14. Bd2 {[%clk 0:02:22]}  Kh8 {[%clk 0:02:46]} 15. Nc5 {[%clk 0:02:18]}  Bxd3 {[%clk 0:02:41]} 16. Nxd3 {[%clk 0:02:19]}  Rfd8 {[%clk 0:02:38]} 17. Be3 {[%clk 0:02:10]}  Nf5 {[%clk 0:02:34]} 18. Bb6 {[%clk 0:02:08]}  Rd5 {[%clk 0:02:31]} 19. Nc5 {[%clk 0:01:50]}  Nb4 {[%clk 0:02:15]} 20. Rec1 {[%clk 0:01:40]}  Rd2 {[%clk 0:02:14]} 21. Ba5 {[%clk 0:01:30]}  Nxc2 {[%clk 0:01:51]} 22. Bxd2 {[%clk 0:01:28]}  Nxa1 {[%clk 0:01:50]} 23. Rxa1 {[%clk 0:01:29]}  b6 {[%clk 0:01:49]} 24. Na4 {[%clk 0:01:24]}  b5 {[%clk 0:01:48]} 25. Nc5 {[%clk 0:01:23]}  Rd8 {[%clk 0:01:47]} 26. Be3 {[%clk 0:01:21]}  Rd6 {[%clk 0:01:46]} 27. b4 {[%clk 0:01:20]}  h5 {[%clk 0:01:46]} 28. h3 {[%clk 0:01:18]}  Nxe3 {[%clk 0:01:40]} 29. fxe3 {[%clk 0:01:17]}  Kh7 {[%clk 0:01:35]} 30. a4 {[%clk 0:01:16]}  Kg6 {[%clk 0:01:33]} 31. axb5 {[%clk 0:01:16]}  axb5 {[%clk 0:01:34]} 32. Ra5 {[%clk 0:01:16]}  Rd2 {[%clk 0:01:29]} 33. Rxb5 {[%clk 0:01:14]}  Re2 {[%clk 0:01:28]} 34. e4 {[%clk 0:01:12]}  h4 {[%clk 0:01:28]} 35. Rb7 {[%clk 0:01:12]}  Kh6 {[%clk 0:01:24]} 36. b5 {[%clk 0:01:08]}  Rc2 {[%clk 0:01:23]} 37. Ne6 {[%clk 0:01:08]}  g5 {[%clk 0:01:20]} 38. Ng7 {[%clk 0:01:06]}  g4 {[%clk 0:01:17]} 39. Nf5+ {[%clk 0:01:04]}  Kg5 {[%clk 0:01:17]} 40. Rg7+ {[%clk 0:01:04]}  Kf4 {[%clk 0:01:17]} 41. Rxg4# {[%clk 0:01:03]} 1-0


[Site "https://www.chess.com"]

[Event "Titled Tuesday Blitz August 22 Late 2023"]
[White "Mikhaylova, Irina"]
[Black "Quirke, Jeffrey"]
[WhiteFideId "4109040"]
[BlackFideId "2013029"]
[WhiteElo "2276"]
[BlackElo "2166"]
[Result "1-0"]
[Round "9"]
[TimeControl "180+1"]
[Date "2023.08.22"]
[WhiteClock "0:00:50"]
[BlackClock "0:00:00"]
[Board "126"]

1. d4 {[%clk 0:03:00]}  e6 {[%clk 0:02:52]} 2. c4 {[%clk 0:02:58]}  Nf6 {[%clk 0:02:52]} 3. Nf3 {[%clk 0:02:58]}  b6 {[%clk 0:02:51]} 4. a3 {[%clk 0:02:57]}  Bb7 {[%clk 0:02:50]} 5. Nc3 {[%clk 0:02:58]}  d5 {[%clk 0:02:50]} 6. cxd5 {[%clk 0:02:58]}  exd5 {[%clk 0:02:50]} 7. Bg5 {[%clk 0:02:58]}  Be7 {[%clk 0:02:49]} 8. e3 {[%clk 0:02:58]}  O-O {[%clk 0:02:48]} 9. Bd3 {[%clk 0:02:58]}  h6 {[%clk 0:02:47]} 10. Bh4 {[%clk 0:02:58]}  Nbd7 {[%clk 0:02:44]} 11. O-O {[%clk 0:02:58]}  Re8 {[%clk 0:02:43]} 12. Rc1 {[%clk 0:02:58]}  a6 {[%clk 0:02:36]} 13. Qc2 {[%clk 0:02:58]}  c5 {[%clk 0:02:12]} 14. Rfd1 {[%clk 0:02:57]}  Ne4 {[%clk 0:02:03]} 15. Bxe7 {[%clk 0:02:44]}  Qxe7 {[%clk 0:02:03]} 16. dxc5 {[%clk 0:02:44]}  bxc5 {[%clk 0:01:44]} 17. Bxe4 {[%clk 0:02:20]}  dxe4 {[%clk 0:01:44]} 18. Ne1 {[%clk 0:02:19]}  Ne5 {[%clk 0:01:30]} 19. Nd5 {[%clk 0:02:02]}  Qh4 {[%clk 0:01:12]} 20. Nc7 {[%clk 0:01:46]}  Nd3 {[%clk 0:00:14]} 21. Nxe8 {[%clk 0:01:02]}  Nxc1 {[%clk 0:00:10]} 22. Nd6 {[%clk 0:00:51]}  Nd3 {[%clk 0:00:00]} 23. Nxb7 {[%clk 0:00:50]} 1-0


[Site "https://www.chess.com"]

[Event "Titled Tuesday Blitz August 22 Late 2023"]
[White "cthake"]
[Black "Cooper, Aaron"]
[BlackFideId "2634945"]
[WhiteElo "1855"]
[BlackElo "2258"]
[Result "0-1"]
[Round "9"]
[TimeControl "180+1"]
[Date "2023.08.22"]
[WhiteClock "0:00:00"]
[BlackClock "0:00:20"]
[Board "128"]

1. e4 {[%clk 0:01:28]}  d5 {[%clk 0:02:57]} 2. exd5 {[%clk 0:01:28]}  Qxd5 {[%clk 0:02:58]} 3. Nc3 {[%clk 0:01:28]}  Qd6 {[%clk 0:02:58]} 4. d4 {[%clk 0:01:28]}  Nf6 {[%clk 0:02:58]} 5. Nf3 {[%clk 0:01:28]}  c6 {[%clk 0:02:58]} 6. Bc4 {[%clk 0:01:28]}  Bg4 {[%clk 0:02:58]} 7. Be3 {[%clk 0:01:25]}  e6 {[%clk 0:02:56]} 8. O-O {[%clk 0:01:24]}  Nbd7 {[%clk 0:02:54]} 9. Qe2 {[%clk 0:01:22]}  Qc7 {[%clk 0:02:52]} 10. Rfd1 {[%clk 0:01:21]}  Bd6 {[%clk 0:02:30]} 11. h3 {[%clk 0:01:20]}  Bh5 {[%clk 0:02:24]} 12. a4 {[%clk 0:01:20]}  O-O {[%clk 0:02:22]} 13. Bg5 {[%clk 0:01:18]}  Rfe8 {[%clk 0:02:19]} 14. Ne4 {[%clk 0:01:14]}  Nxe4 {[%clk 0:02:16]} 15. Qxe4 {[%clk 0:01:14]}  Bg6 {[%clk 0:02:17]} 16. Qe2 {[%clk 0:01:13]}  e5 {[%clk 0:02:09]} 17. Qd2 {[%clk 0:01:09]}  exd4 {[%clk 0:02:01]} 18. Nxd4 {[%clk 0:01:08]}  Ne5 {[%clk 0:01:57]} 19. Bb3 {[%clk 0:01:05]}  Be7 {[%clk 0:01:44]} 20. Bxe7 {[%clk 0:01:03]}  Qxe7 {[%clk 0:01:43]} 21. c3 {[%clk 0:01:03]}  Rad8 {[%clk 0:01:42]} 22. Re1 {[%clk 0:01:02]}  Qf6 {[%clk 0:01:37]} 23. Bc2 {[%clk 0:01:00]}  c5 {[%clk 0:01:33]} 24. Bxg6 {[%clk 0:00:59]}  hxg6 {[%clk 0:01:20]} 25. f4 {[%clk 0:00:45]}  cxd4 {[%clk 0:01:20]} 26. fxe5 {[%clk 0:00:45]}  Qb6 {[%clk 0:01:06]} 27. Qf2 {[%clk 0:00:44]}  dxc3 {[%clk 0:00:51]} 28. Qxb6 {[%clk 0:00:42]}  axb6 {[%clk 0:00:51]} 29. bxc3 {[%clk 0:00:42]}  Rd2 {[%clk 0:00:46]} 30. Rab1 {[%clk 0:00:41]}  Re6 {[%clk 0:00:46]} 31. Re3 {[%clk 0:00:37]}  Ra2 {[%clk 0:00:42]} 32. Rb4 {[%clk 0:00:36]}  Kf8 {[%clk 0:00:37]} 33. Kh2 {[%clk 0:00:34]}  Ke7 {[%clk 0:00:38]} 34. Kg3 {[%clk 0:00:30]}  Rc6 {[%clk 0:00:37]} 35. c4 {[%clk 0:00:22]}  Rc2 {[%clk 0:00:34]} 36. Re4 {[%clk 0:00:21]}  Ke6 {[%clk 0:00:35]} 37. Kf4 {[%clk 0:00:20]}  Rxg2 {[%clk 0:00:31]} 38. Rd4 {[%clk 0:00:17]}  Rf2+ {[%clk 0:00:29]} 39. Ke4 {[%clk 0:00:16]}  Rh2 {[%clk 0:00:28]} 40. Rd3 {[%clk 0:00:16]}  Rc2 {[%clk 0:00:26]} 41. Rd4 {[%clk 0:00:15]}  Re2+ {[%clk 0:00:24]} 42. Kf4 {[%clk 0:00:12]}  Rxe5 {[%clk 0:00:25]} 43. Rd8 {[%clk 0:00:12]}  Rf5+ {[%clk 0:00:24]} 44. Ke4 {[%clk 0:00:11]}  Rfc5 {[%clk 0:00:25]} 45. Re8+ {[%clk 0:00:11]}  Kf6 {[%clk 0:00:25]} 46. Rb8 {[%clk 0:00:10]}  Rxc4+ {[%clk 0:00:26]} 47. Rxc4 {[%clk 0:00:10]}  Rxc4+ {[%clk 0:00:26]} 48. Kd5 {[%clk 0:00:10]}  Rxa4 {[%clk 0:00:27]} 49. Rxb7 {[%clk 0:00:11]}  Rb4 {[%clk 0:00:28]} 50. Kc6 {[%clk 0:00:09]}  Ke6 {[%clk 0:00:27]} 51. Ra7 {[%clk 0:00:06]}  Rb3 {[%clk 0:00:23]} 52. Rb7 {[%clk 0:00:05]}  g5 {[%clk 0:00:21]} 53. Kc7 {[%clk 0:00:03]}  f5 {[%clk 0:00:20]} 54. Kd8 {[%clk 0:00:03]}  Kf6 {[%clk 0:00:19]} 55. Ke8 {[%clk 0:00:02]}  f4 {[%clk 0:00:19]} 56. Rf7+ {[%clk 0:00:00]}  Kg6 {[%clk 0:00:20]} 0-1


[Site "https://www.chess.com"]

[Event "Titled Tuesday Blitz August 22 Late 2023"]
[White "Carrasco Miranda, Andres"]
[Black "Freitag, Manfred"]
[WhiteFideId "3405990"]
[BlackFideId "1602004"]
[WhiteElo "2411"]
[BlackElo "2648"]
[Result "0-1"]
[Round "9"]
[TimeControl "180+1"]
[Date "2023.08.22"]
[WhiteClock "0:01:33"]
[BlackClock "0:02:25"]
[Board "134"]

1. d4 {[%clk 0:02:57]}  Nf6 {[%clk 0:02:59]} 2. c4 {[%clk 0:02:56]}  g6 {[%clk 0:02:57]} 3. g3 {[%clk 0:02:56]}  Bg7 {[%clk 0:02:57]} 4. Bg2 {[%clk 0:02:55]}  O-O {[%clk 0:02:58]} 5. Nf3 {[%clk 0:02:52]}  d6 {[%clk 0:02:59]} 6. O-O {[%clk 0:02:51]}  Nbd7 {[%clk 0:02:59]} 7. Nc3 {[%clk 0:02:51]}  e5 {[%clk 0:03:00]} 8. e4 {[%clk 0:02:50]}  c6 {[%clk 0:02:59]} 9. h3 {[%clk 0:02:50]}  Qb6 {[%clk 0:02:58]} 10. c5 {[%clk 0:02:44]}  dxc5 {[%clk 0:02:57]} 11. dxe5 {[%clk 0:02:44]}  Ne8 {[%clk 0:02:57]} 12. e6 {[%clk 0:02:44]}  fxe6 {[%clk 0:02:57]} 13. Ng5 {[%clk 0:02:45]}  Ne5 {[%clk 0:02:58]} 14. Na4 {[%clk 0:02:17]}  Qb5 {[%clk 0:02:54]} 15. Nc3 {[%clk 0:02:16]}  Qb6 {[%clk 0:02:53]} 16. Na4 {[%clk 0:02:16]}  Qb4 {[%clk 0:02:43]} 17. Bd2 {[%clk 0:02:12]}  Qd4 {[%clk 0:02:35]} 18. Be3 {[%clk 0:01:38]}  Qxd1 {[%clk 0:02:31]} 19. Rfxd1 {[%clk 0:01:39]}  h6 {[%clk 0:02:27]} 20. Nf3 {[%clk 0:01:39]}  Nxf3+ {[%clk 0:02:25]} 21. Bxf3 {[%clk 0:01:33]}  Rxf3 {[%clk 0:02:25]} 0-1


[Site "https://www.chess.com"]

[Event "Titled Tuesday Blitz August 22 Late 2023"]
[White "Nakamura, Hikaru"]
[Black "Matlakov, Maxim"]
[WhiteFideId "2016192"]
[BlackFideId "4168003"]
[WhiteElo "3247"]
[BlackElo "3031"]
[Result "1-0"]
[Round "10"]
[TimeControl "180+1"]
[Date "2023.08.22"]
[WhiteClock "0:00:19"]
[BlackClock "0:00:00"]
[Board "1"]

1. Nf3 {[%clk 0:03:00]}  d5 {[%clk 0:02:59]} 2. b3 {[%clk 0:03:00]}  Nf6 {[%clk 0:02:59]} 3. e3 {[%clk 0:02:59]}  e6 {[%clk 0:02:59]} 4. c4 {[%clk 0:03:00]}  Be7 {[%clk 0:03:00]} 5. Bb2 {[%clk 0:03:00]}  O-O {[%clk 0:02:59]} 6. d4 {[%clk 0:03:01]}  c5 {[%clk 0:02:55]} 7. dxc5 {[%clk 0:03:01]}  dxc4 {[%clk 0:02:53]} 8. Qxd8 {[%clk 0:03:00]}  Rxd8 {[%clk 0:02:53]} 9. Bxc4 {[%clk 0:03:01]}  Nc6 {[%clk 0:02:45]} 10. O-O {[%clk 0:02:56]}  Ne4 {[%clk 0:02:29]} 11. Nc3 {[%clk 0:02:52]}  Nxc5 {[%clk 0:02:28]} 12. Rfd1 {[%clk 0:02:49]}  Bd7 {[%clk 0:02:26]} 13. Rac1 {[%clk 0:02:26]}  Be8 {[%clk 0:02:25]} 14. Kf1 {[%clk 0:02:12]}  a6 {[%clk 0:02:24]} 15. Be2 {[%clk 0:02:11]}  Bf6 {[%clk 0:02:11]} 16. Ba3 {[%clk 0:02:07]}  Be7 {[%clk 0:01:58]} 17. Rxd8 {[%clk 0:01:53]}  Rxd8 {[%clk 0:01:57]} 18. Nb1 {[%clk 0:01:53]}  b6 {[%clk 0:00:48]} 19. Ne1 {[%clk 0:01:36]}  a5 {[%clk 0:00:41]} 20. Bb5 {[%clk 0:01:30]}  Kf8 {[%clk 0:00:39]} 21. Nc2 {[%clk 0:01:23]}  Ne5 {[%clk 0:00:34]} 22. Bxe8 {[%clk 0:01:21]}  Kxe8 {[%clk 0:00:35]} 23. Nd4 {[%clk 0:01:19]}  Ned3 {[%clk 0:00:34]} 24. Rd1 {[%clk 0:01:17]}  Rc8 {[%clk 0:00:33]} 25. Ke2 {[%clk 0:01:12]}  Nb4 {[%clk 0:00:33]} 26. Bxb4 {[%clk 0:01:12]}  axb4 {[%clk 0:00:34]} 27. f3 {[%clk 0:01:12]}  g6 {[%clk 0:00:32]} 28. Rd2 {[%clk 0:00:54]}  Bf6 {[%clk 0:00:31]} 29. Nc2 {[%clk 0:00:51]}  Na6 {[%clk 0:00:24]} 30. Ne1 {[%clk 0:00:52]}  Rc1 {[%clk 0:00:23]} 31. Rd1 {[%clk 0:00:52]}  Rc8 {[%clk 0:00:22]} 32. Nd2 {[%clk 0:00:52]}  Bc3 {[%clk 0:00:17]} 33. Ne4 {[%clk 0:00:52]}  Ke7 {[%clk 0:00:17]} 34. Rc1 {[%clk 0:00:47]}  Rc7 {[%clk 0:00:13]} 35. Nxc3 {[%clk 0:00:43]}  bxc3 {[%clk 0:00:13]} 36. a3 {[%clk 0:00:38]}  b5 {[%clk 0:00:13]} 37. b4 {[%clk 0:00:38]}  Nb8 {[%clk 0:00:10]} 38. Kd3 {[%clk 0:00:35]}  Nd7 {[%clk 0:00:11]} 39. f4 {[%clk 0:00:26]}  Nb6 {[%clk 0:00:11]} 40. Rxc3 {[%clk 0:00:27]}  Nc4 {[%clk 0:00:11]} 41. Ke2 {[%clk 0:00:24]}  Rd7 {[%clk 0:00:09]} 42. Nf3 {[%clk 0:00:24]}  Ra7 {[%clk 0:00:08]} 43. Nd4 {[%clk 0:00:24]}  Rxa3 {[%clk 0:00:08]} 44. Nxb5 {[%clk 0:00:23]}  Ra2+ {[%clk 0:00:08]} 45. Kd3 {[%clk 0:00:22]}  Nb6 {[%clk 0:00:06]} 46. Rc7+ {[%clk 0:00:21]}  Kf8 {[%clk 0:00:05]} 47. Nd6 {[%clk 0:00:20]}  Rxg2 {[%clk 0:00:05]} 48. Rxf7+ {[%clk 0:00:20]}  Kg8 {[%clk 0:00:05]} 49. Rb7 {[%clk 0:00:19]}  Nd5 {[%clk 0:00:06]} 50. b5 {[%clk 0:00:18]}  Rxh2 {[%clk 0:00:06]} 51. b6 {[%clk 0:00:18]}  Rb2 {[%clk 0:00:06]} 52. Rb8+ {[%clk 0:00:18]}  Kg7 {[%clk 0:00:06]} 53. b7 {[%clk 0:00:19]}  Nb4+ {[%clk 0:00:04]} 54. Kc3 {[%clk 0:00:19]}  Rb1 {[%clk 0:00:03]} 55. Rg8+ {[%clk 0:00:19]}  Kxg8 {[%clk 0:00:04]} 56. b8=Q+ {[%clk 0:00:19]}  Kg7 {[%clk 0:00:04]} 57. Qc7+ {[%clk 0:00:19]}  Kh6 {[%clk 0:00:03]} 58. Nf7+ {[%clk 0:00:19]}  Kh5 {[%clk 0:00:04]} 59. Qe5+ {[%clk 0:00:19]}  Kg4 {[%clk 0:00:04]} 60. Qxe6+ {[%clk 0:00:20]}  Kg3 {[%clk 0:00:00]} 61. Ng5 {[%clk 0:00:19]} 1-0


[Site "https://www.chess.com"]

[Event "Titled Tuesday Blitz August 22 Late 2023"]
[White "Sarana, Alexey"]
[Black "Paravyan, David"]
[WhiteFideId "24133795"]
[BlackFideId "4194985"]
[WhiteElo "3085"]
[BlackElo "2979"]
[Result "1-0"]
[Round "10"]
[TimeControl "180+1"]
[Date "2023.08.22"]
[WhiteClock "0:00:05"]
[BlackClock "0:00:00"]
[Board "3"]

1. d4 {[%clk 0:03:00]}  Nf6 {[%clk 0:03:00]} 2. c4 {[%clk 0:03:01]}  g6 {[%clk 0:03:00]} 3. Nc3 {[%clk 0:03:02]}  d5 {[%clk 0:03:00]} 4. Bg5 {[%clk 0:03:03]}  Ne4 {[%clk 0:02:59]} 5. Bh4 {[%clk 0:03:03]}  Nxc3 {[%clk 0:02:37]} 6. bxc3 {[%clk 0:03:04]}  dxc4 {[%clk 0:02:37]} 7. e3 {[%clk 0:03:03]}  Be6 {[%clk 0:02:29]} 8. Nf3 {[%clk 0:03:03]}  Bh6 {[%clk 0:02:27]} 9. Qb1 {[%clk 0:02:56]}  b6 {[%clk 0:02:25]} 10. Ne5 {[%clk 0:02:35]}  O-O {[%clk 0:02:12]} 11. Be2 {[%clk 0:02:34]}  Bd5 {[%clk 0:01:59]} 12. O-O {[%clk 0:02:32]}  Nd7 {[%clk 0:01:51]} 13. Nxc4 {[%clk 0:02:26]}  c5 {[%clk 0:01:48]} 14. e4 {[%clk 0:02:21]}  Bxc4 {[%clk 0:01:41]} 15. Bxc4 {[%clk 0:02:22]}  cxd4 {[%clk 0:01:37]} 16. cxd4 {[%clk 0:02:23]}  Rc8 {[%clk 0:01:36]} 17. Qd3 {[%clk 0:02:22]}  Qc7 {[%clk 0:01:27]} 18. Ba6 {[%clk 0:02:20]}  Rb8 {[%clk 0:01:09]} 19. e5 {[%clk 0:01:35]}  e6 {[%clk 0:00:59]} 20. f4 {[%clk 0:01:30]}  b5 {[%clk 0:00:31]} 21. Bxb5 {[%clk 0:01:25]}  Nc5 {[%clk 0:00:31]} 22. Qc4 {[%clk 0:01:17]}  Qa5 {[%clk 0:00:27]} 23. a4 {[%clk 0:01:04]}  Ne4 {[%clk 0:00:26]} 24. Qd3 {[%clk 0:01:02]}  Nc3 {[%clk 0:00:09]} 25. Be1 {[%clk 0:00:52]}  Rfc8 {[%clk 0:00:10]} 26. Ra3 {[%clk 0:00:48]}  Rxb5 {[%clk 0:00:09]} 27. Bxc3 {[%clk 0:00:45]}  Rxc3 {[%clk 0:00:07]} 28. Qxc3 {[%clk 0:00:34]}  Rb4 {[%clk 0:00:07]} 29. Rb3 {[%clk 0:00:26]}  Bf8 {[%clk 0:00:02]} 30. Rxb4 {[%clk 0:00:23]}  Bxb4 {[%clk 0:00:03]} 31. Qb3 {[%clk 0:00:24]}  Bc3 {[%clk 0:00:02]} 32. Qc4 {[%clk 0:00:21]}  Bb2 {[%clk 0:00:02]} 33. g3 {[%clk 0:00:19]}  Qd2 {[%clk 0:00:02]} 34. Kh1 {[%clk 0:00:11]}  Bxd4 {[%clk 0:00:02]} 35. Qb3 {[%clk 0:00:12]}  h5 {[%clk 0:00:02]} 36. Qf3 {[%clk 0:00:11]}  Kg7 {[%clk 0:00:01]} 37. Rd1 {[%clk 0:00:11]}  Qb2 {[%clk 0:00:02]} 38. Qe4 {[%clk 0:00:08]}  Bb6 {[%clk 0:00:02]} 39. Rb1 {[%clk 0:00:08]}  Qf2 {[%clk 0:00:02]} 40. Qg2 {[%clk 0:00:06]}  Qe3 {[%clk 0:00:02]} 41. Rf1 {[%clk 0:00:04]}  Qd3 {[%clk 0:00:02]} 42. Qf3 {[%clk 0:00:04]}  Qc4 {[%clk 0:00:03]} 43. Ra1 {[%clk 0:00:03]}  Bd4 {[%clk 0:00:02]} 44. Qe4 {[%clk 0:00:02]}  Qc3 {[%clk 0:00:02]} 45. Rd1 {[%clk 0:00:03]}  Bb6 {[%clk 0:00:02]} 46. Kg2 {[%clk 0:00:03]}  Qb2+ {[%clk 0:00:02]} 47. Kh3 {[%clk 0:00:03]}  Qb3 {[%clk 0:00:02]} 48. Re1 {[%clk 0:00:03]}  Qa2 {[%clk 0:00:02]} 49. Re2 {[%clk 0:00:04]}  Qa1 {[%clk 0:00:02]} 50. Re1 {[%clk 0:00:04]}  Qa2 {[%clk 0:00:03]} 51. Rd1 {[%clk 0:00:03]}  Qf2 {[%clk 0:00:03]} 52. Rc1 {[%clk 0:00:03]}  h4 {[%clk 0:00:03]} 53. Rb1 {[%clk 0:00:02]}  hxg3 {[%clk 0:00:03]} 54. hxg3 {[%clk 0:00:03]}  Qd2 {[%clk 0:00:03]} 55. Rh1 {[%clk 0:00:04]}  Qa2 {[%clk 0:00:02]} 56. Rf1 {[%clk 0:00:04]}  Qd2 {[%clk 0:00:02]} 57. Kg4 {[%clk 0:00:04]}  Qh2 {[%clk 0:00:02]} 58. Rh1 {[%clk 0:00:04]}  Qd2 {[%clk 0:00:02]} 59. Kh3 {[%clk 0:00:05]}  Qf2 {[%clk 0:00:02]} 60. Kh4 {[%clk 0:00:05]}  Qd2 {[%clk 0:00:01]} 61. Kg4 {[%clk 0:00:05]}  Qf2 {[%clk 0:00:02]} 62. Qf3 {[%clk 0:00:05]}  Qc2 {[%clk 0:00:02]} 63. Kh3 {[%clk 0:00:05]}  Qf5+ {[%clk 0:00:02]} 64. g4 {[%clk 0:00:06]}  Qc2 {[%clk 0:00:02]} 65. g5 {[%clk 0:00:06]}  Qxa4 {[%clk 0:00:01]} 66. Kg4 {[%clk 0:00:05]}  Qc2 {[%clk 0:00:01]} 67. Qh3 {[%clk 0:00:03]}  Qf5+ {[%clk 0:00:02]} 68. Kg3 {[%clk 0:00:03]}  Qd3+ {[%clk 0:00:03]} 69. Kg4 {[%clk 0:00:03]}  Qf5+ {[%clk 0:00:03]} 70. Kg3 {[%clk 0:00:04]}  Qd3+ {[%clk 0:00:04]} 71. Kh4 {[%clk 0:00:03]}  Bf2+ {[%clk 0:00:03]} 72. Kg4 {[%clk 0:00:04]}  Qe2+ {[%clk 0:00:02]} 73. Qf3 {[%clk 0:00:03]}  Qc2 {[%clk 0:00:03]} 74. Kh3 {[%clk 0:00:02]}  Bc5 {[%clk 0:00:02]} 75. Kg3 {[%clk 0:00:02]}  Qd2 {[%clk 0:00:02]} 76. Qg2 {[%clk 0:00:02]}  Qe3+ {[%clk 0:00:02]} 77. Kg4 {[%clk 0:00:03]}  Qd3 {[%clk 0:00:02]} 78. Qh2 {[%clk 0:00:03]}  Qf5+ {[%clk 0:00:02]} 79. Kg3 {[%clk 0:00:03]}  Qd3+ {[%clk 0:00:02]} 80. Kg2 {[%clk 0:00:03]}  Qe4+ {[%clk 0:00:02]} 81. Kg3 {[%clk 0:00:03]}  Qd3+ {[%clk 0:00:02]} 82. Kh4 {[%clk 0:00:04]}  Be3 {[%clk 0:00:01]} 83. Kg4 {[%clk 0:00:04]}  Qf5+ {[%clk 0:00:01]} 84. Kf3 {[%clk 0:00:04]}  Kf8 {[%clk 0:00:01]} 85. Qh8+ {[%clk 0:00:04]}  Ke7 {[%clk 0:00:00]} 86. Qf6+ {[%clk 0:00:05]} 1-0


[Site "https://www.chess.com"]